[Event "*** Titled Tuesday Blitz"]
[Site "Chess.com"]
[Date "2021.02.16"]
[Round "3"]
[White "sergiochess83"]
[Black "Sergienko_Sergey"]
[Result "1-0"]
[WhiteElo "2837"]
[BlackElo "2446"]
[TimeControl "180+1"]
[EndTime "10:31:42 PST"]
[Termination "sergiochess83 won by resignation"]

1. e4 {[%clk 0:03:00.9]} 1... c5 {[%clk 0:02:59.5]} 2. Nf3 {[%clk 0:03:00.6]}
2... a6 {[%clk 0:02:58.8]} 3. c3 {[%clk 0:02:59.1]} 3... e6 {[%clk 0:02:58]} 4.
d4 {[%clk 0:02:58.7]} 4... d5 {[%clk 0:02:57.6]} 5. exd5 {[%clk 0:02:54.1]} 5...
exd5 {[%clk 0:02:57.2]} 6. Be2 {[%clk 0:02:53.6]} 6... Nf6 {[%clk 0:02:55.7]} 7.
O-O {[%clk 0:02:53.4]} 7... c4 {[%clk 0:02:51.5]} 8. Ne5 {[%clk 0:02:51.3]} 8...
Be7 {[%clk 0:02:47.5]} 9. Bf4 {[%clk 0:02:51.1]} 9... O-O {[%clk 0:02:44.2]} 10.
Nd2 {[%clk 0:02:51.7]} 10... Nc6 {[%clk 0:02:37.3]} 11. Re1 {[%clk 0:02:50.3]}
11... Bf5 {[%clk 0:02:22]} 12. Nf1 {[%clk 0:02:37.9]} 12... Nxe5 {[%clk
0:01:57.7]} 13. dxe5 {[%clk 0:02:35.6]} 13... Ne4 {[%clk 0:01:53.9]} 14. Ne3
{[%clk 0:02:29.2]} 14... Be6 {[%clk 0:01:53.4]} 15. Bf3 {[%clk 0:02:29.2]} 15...
Bc5 {[%clk 0:01:36.5]} 16. Qc2 {[%clk 0:02:12.7]} 16... f5 {[%clk 0:01:18.6]}
17. exf6 {[%clk 0:02:01]} 17... Qxf6 {[%clk 0:01:16.3]} 18. Bxe4 {[%clk
0:01:57.4]} 18... dxe4 {[%clk 0:00:58.8]} 19. Qxe4 {[%clk 0:01:48.9]} 19... Qxf4
{[%clk 0:00:53]} 20. Qxe6+ {[%clk 0:01:47.3]} 20... Kh8 {[%clk 0:00:52.8]} 21.
Rf1 {[%clk 0:01:33.8]} 21... Rae8 {[%clk 0:00:46.6]} 22. Qd5 {[%clk 0:01:32.9]}
22... Bxe3 {[%clk 0:00:37.1]} 23. fxe3 {[%clk 0:01:32.8]} 23... Qxe3+ {[%clk
0:00:37.1]} 24. Kh1 {[%clk 0:01:33.2]} 24... Qe2 {[%clk 0:00:30.5]} 25. Rxf8+
{[%clk 0:01:12]} 25... Rxf8 {[%clk 0:00:29.7]} 26. Rg1 {[%clk 0:01:12.9]} 26...
Qxb2 {[%clk 0:00:22.4]} 27. Qxc4 {[%clk 0:01:13.1]} 27... h6 {[%clk 0:00:20.6]}
28. h3 {[%clk 0:01:11.2]} 28... Qb6 {[%clk 0:00:16.8]} 29. Rd1 {[%clk
0:01:07.1]} 29... Qe3 {[%clk 0:00:12.2]} 30. Qb4 {[%clk 0:00:53.6]} 30... Qf2
{[%clk 0:00:09.5]} 31. a4 {[%clk 0:00:49.5]} 31... Re8 {[%clk 0:00:08.9]} 32.
Qxb7 {[%clk 0:00:36.9]} 32... Re1+ {[%clk 0:00:08.5]} 33. Rxe1 {[%clk 0:00:37]}
33... Qxe1+ {[%clk 0:00:08.6]} 34. Kh2 {[%clk 0:00:37.5]} 34... Qe5+ {[%clk
0:00:08.4]} 35. Kh1 {[%clk 0:00:37.7]} 35... Qe1+ {[%clk 0:00:08]} 36. Kh2
{[%clk 0:00:36.6]} 36... Qe5+ {[%clk 0:00:08.4]} 37. g3 {[%clk 0:00:36.6]} 37...
Qxc3 {[%clk 0:00:07.7]} 38. Qxa6 {[%clk 0:00:29.9]} 38... Qc2+ {[%clk
0:00:07.6]} 39. Kg1 {[%clk 0:00:29.5]} 39... Qd1+ {[%clk 0:00:06.9]} 40. Kf2
{[%clk 0:00:29.7]} 40... Qd2+ {[%clk 0:00:06.7]} 41. Kf3 {[%clk 0:00:30.1]}
41... Qd1+ {[%clk 0:00:06.6]} 42. Kf4 {[%clk 0:00:26.9]} 42... Qd2+ {[%clk
0:00:06.3]} 43. Kf5 {[%clk 0:00:20.6]} 43... Qc2+ {[%clk 0:00:05.6]} 44. Ke5
{[%clk 0:00:18.4]} 44... Qc3+ {[%clk 0:00:05.2]} 45. Kd5 {[%clk 0:00:18.1]}
45... Qxg3 {[%clk 0:00:04.4]} 46. Qc8+ {[%clk 0:00:17.5]} 46... Kh7 {[%clk
0:00:04.3]} 47. Qf5+ {[%clk 0:00:17.7]} 47... Kh8 {[%clk 0:00:03.5]} 48. a5
{[%clk 0:00:10.5]} 48... Qb3+ {[%clk 0:00:02.8]} 49. Kc6 {[%clk 0:00:10.5]}
49... Qc3+ {[%clk 0:00:01.8]} 50. Qc5 {[%clk 0:00:09.3]} 50... Qf3+ {[%clk
0:00:01.5]} 51. Qd5 {[%clk 0:00:08.8]} 51... Qd3 {[%clk 0:00:01.1]} 1-0

[Event "*** Titled Tuesday Blitz"]
[Site "Chess.com"]
[Date "2021.02.16"]
[Round "3"]
[White "BahadirOzen"]
[Black "Loy_Konstantin"]
[Result "1-0"]
[WhiteElo "2747"]
[BlackElo "2375"]
[TimeControl "180+1"]
[EndTime "10:31:42 PST"]
[Termination "BahadirOzen won by resignation"]

1. g3 {[%clk 0:03:00.9]} 1... c5 {[%clk 0:02:56.7]} 2. Bg2 {[%clk 0:03:00.9]}
2... g6 {[%clk 0:02:57.3]} 3. Nf3 {[%clk 0:02:59.7]} 3... Bg7 {[%clk 0:02:57.5]}
4. O-O {[%clk 0:03:00]} 4... Nc6 {[%clk 0:02:57.9]} 5. e4 {[%clk 0:02:59.8]}
5... Nf6 {[%clk 0:02:57.6]} 6. d3 {[%clk 0:02:58.3]} 6... O-O {[%clk 0:02:57.8]}
7. Re1 {[%clk 0:02:58.4]} 7... e5 {[%clk 0:02:57.6]} 8. Nc3 {[%clk 0:02:49.7]}
8... d6 {[%clk 0:02:49.5]} 9. Nd2 {[%clk 0:02:47.7]} 9... Nd4 {[%clk 0:02:38.6]}
10. Nc4 {[%clk 0:02:44.9]} 10... b5 {[%clk 0:02:35.8]} 11. Ne3 {[%clk
0:02:44.8]} 11... Be6 {[%clk 0:02:32.7]} 12. a4 {[%clk 0:02:31.7]} 12... a6
{[%clk 0:02:30.5]} 13. Ncd5 {[%clk 0:02:31.6]} 13... Bxd5 {[%clk 0:02:28]} 14.
exd5 {[%clk 0:02:29.7]} 14... Qd7 {[%clk 0:02:13.9]} 15. c3 {[%clk 0:02:21.8]}
15... Nf5 {[%clk 0:02:13.9]} 16. Nxf5 {[%clk 0:02:20.8]} 16... Qxf5 {[%clk
0:02:14.8]} 17. h3 {[%clk 0:02:06]} 17... Qd7 {[%clk 0:02:02.1]} 18. Be3 {[%clk
0:01:59.8]} 18... Rfb8 {[%clk 0:01:39.7]} 19. axb5 {[%clk 0:01:57.9]} 19... axb5
{[%clk 0:01:39.4]} 20. b4 {[%clk 0:01:33.3]} 20... cxb4 {[%clk 0:01:36.5]} 21.
cxb4 {[%clk 0:01:34.2]} 21... Ra4 {[%clk 0:01:10.9]} 22. Qb3 {[%clk 0:01:33.4]}
22... Rba8 {[%clk 0:01:09.4]} 23. Rxa4 {[%clk 0:01:13.6]} 23... bxa4 {[%clk
0:01:07]} 24. Qc4 {[%clk 0:01:13.3]} 24... Qb7 {[%clk 0:00:55.2]} 25. b5 {[%clk
0:01:10.3]} 25... Nd7 {[%clk 0:00:55.5]} 26. Qc6 {[%clk 0:01:06.9]} 26... Rb8
{[%clk 0:00:45.4]} 27. Ra1 {[%clk 0:01:01.4]} 27... Qxb5 {[%clk 0:00:42]} 28.
Rxa4 {[%clk 0:00:58.4]} 28... h5 {[%clk 0:00:16.9]} 29. Ra7 {[%clk 0:00:55.2]}
29... Nf6 {[%clk 0:00:13.2]} 30. Qxd6 {[%clk 0:00:52.1]} 30... Rf8 {[%clk
0:00:12.4]} 31. Bg5 {[%clk 0:00:39.5]} 31... Nh7 {[%clk 0:00:12.3]} 32. Be7
{[%clk 0:00:39.3]} 32... Re8 {[%clk 0:00:12]} 33. Qc6 {[%clk 0:00:35.1]} 33...
Rb8 {[%clk 0:00:08.3]} 34. Qxb5 {[%clk 0:00:34.2]} 34... Rxb5 {[%clk 0:00:09.2]}
35. Ra8+ {[%clk 0:00:34.3]} 35... Bf8 {[%clk 0:00:08.7]} 36. d6 {[%clk
0:00:34.6]} 36... Kg7 {[%clk 0:00:06.6]} 37. Bc6 {[%clk 0:00:19.9]} 37... Rb6
{[%clk 0:00:06.4]} 38. Rc8 {[%clk 0:00:16.9]} 38... Bxe7 {[%clk 0:00:01.6]} 39.
dxe7 {[%clk 0:00:16.3]} 39... Nf6 {[%clk 0:00:02.5]} 40. g4 {[%clk 0:00:13.6]}
40... hxg4 {[%clk 0:00:02.2]} 41. hxg4 {[%clk 0:00:14.5]} 41... g5 {[%clk
0:00:02.7]} 42. Kg2 {[%clk 0:00:14.3]} 42... Rb4 {[%clk 0:00:02.4]} 43. Kg3
{[%clk 0:00:09.2]} 43... Rd4 {[%clk 0:00:02.8]} 44. Be4 {[%clk 0:00:05.7]} 44...
Rd6 {[%clk 0:00:01.9]} 45. e8=Q {[%clk 0:00:05.8]} 45... Nxe8 {[%clk 0:00:02]}
46. Rxe8 {[%clk 0:00:06.7]} 46... Rd7 {[%clk 0:00:01.1]} 47. Rxe5 {[%clk
0:00:06.5]} 47... f6 {[%clk 0:00:01]} 48. Rf5 {[%clk 0:00:06.9]} 48... Kf7
{[%clk 0:00:01.1]} 49. Kf3 {[%clk 0:00:07.8]} 49... Kg7 {[%clk 0:00:01.4]} 50.
Ra5 {[%clk 0:00:08.2]} 50... Rc7 {[%clk 0:00:02.3]} 51. Rb5 {[%clk 0:00:08.1]}
51... Rd7 {[%clk 0:00:02.6]} 52. Rb7 {[%clk 0:00:08.4]} 52... Re7 {[%clk
0:00:03.2]} 53. Rxe7+ {[%clk 0:00:08.4]} 1-0

[Event "*** Titled Tuesday Blitz"]
[Site "Chess.com"]
[Date "2021.02.16"]
[Round "3"]
[White "dpopadic"]
[Black "LenkaPtacnikova"]
[Result "1-0"]
[WhiteElo "2343"]
[BlackElo "2108"]
[TimeControl "180+1"]
[EndTime "10:31:42 PST"]
[Termination "dpopadic won by resignation"]

1. e4 {[%clk 0:03:00.9]} 1... c5 {[%clk 0:02:55.5]} 2. Nc3 {[%clk 0:03:00.4]}
2... g6 {[%clk 0:02:51.6]} 3. f4 {[%clk 0:03:00.2]} 3... Bg7 {[%clk 0:02:51.4]}
4. Nf3 {[%clk 0:03:00.2]} 4... Nc6 {[%clk 0:02:48.6]} 5. Bc4 {[%clk 0:03:00.1]}
5... e6 {[%clk 0:02:47.1]} 6. f5 {[%clk 0:02:59.6]} 6... Nge7 {[%clk 0:02:35.7]}
7. fxe6 {[%clk 0:02:59.5]} 7... fxe6 {[%clk 0:02:35.1]} 8. d3 {[%clk 0:02:59.5]}
8... O-O {[%clk 0:02:35]} 9. O-O {[%clk 0:02:59]} 9... d5 {[%clk 0:02:34.4]} 10.
Bb3 {[%clk 0:02:58.8]} 10... Na5 {[%clk 0:02:28]} 11. Bg5 {[%clk 0:02:57.6]}
11... Nxb3 {[%clk 0:02:27.3]} 12. axb3 {[%clk 0:02:57.1]} 12... d4 {[%clk
0:01:53.4]} 13. Na4 {[%clk 0:02:55.5]} 13... Qc7 {[%clk 0:01:41.4]} 14. Bxe7
{[%clk 0:02:53.6]} 14... Qxe7 {[%clk 0:01:41.3]} 15. Nb6 {[%clk 0:02:53.8]}
15... Rb8 {[%clk 0:01:20.6]} 16. Rxa7 {[%clk 0:02:52.4]} 16... Bh6 {[%clk
0:01:20]} 17. Ra1 {[%clk 0:02:45.9]} 17... Be3+ {[%clk 0:01:19.6]} 18. Kh1
{[%clk 0:02:45.7]} 18... Bd7 {[%clk 0:01:15.5]} 19. Nxd7 {[%clk 0:02:45.2]}
19... Qxd7 {[%clk 0:01:14.6]} 20. Qe2 {[%clk 0:02:38.6]} 20... Qd6 {[%clk
0:01:09.6]} 21. Ng1 {[%clk 0:02:13.1]} 21... Bf4 {[%clk 0:01:05.8]} 22. g3
{[%clk 0:02:08.3]} 22... Be3 {[%clk 0:01:04.8]} 23. Kg2 {[%clk 0:02:05]} 23...
b5 {[%clk 0:00:56.6]} 24. Rxf8+ {[%clk 0:01:49]} 24... Rxf8 {[%clk 0:00:55.2]}
25. Rf1 {[%clk 0:01:48.7]} 25... Ra8 {[%clk 0:00:54.1]} 26. Qf3 {[%clk
0:01:45.6]} 26... Qe7 {[%clk 0:00:53.9]} 27. e5 {[%clk 0:01:31.7]} 27... Ra2
{[%clk 0:00:53.4]} 28. Rb1 {[%clk 0:01:28]} 28... Bxg1 {[%clk 0:00:41.7]} 29.
Kxg1 {[%clk 0:01:27.5]} 29... Qg5 {[%clk 0:00:41.6]} 30. Qf4 {[%clk 0:01:17.8]}
30... Qxf4 {[%clk 0:00:29.4]} 31. gxf4 {[%clk 0:01:17.7]} 31... Kf7 {[%clk
0:00:26.8]} 32. Kg2 {[%clk 0:01:13.7]} 32... h6 {[%clk 0:00:25]} 33. Kg3 {[%clk
0:01:08.6]} 33... g5 {[%clk 0:00:21.6]} 34. h4 {[%clk 0:01:00.2]} 34... gxh4+
{[%clk 0:00:20.4]} 35. Kxh4 {[%clk 0:01:00.1]} 35... Kg6 {[%clk 0:00:21]} 36.
Kg4 {[%clk 0:00:59.7]} 36... h5+ {[%clk 0:00:20.6]} 37. Kf3 {[%clk 0:00:59.2]}
37... Kf5 {[%clk 0:00:21]} 38. Rh1 {[%clk 0:00:58.4]} 38... Rxb2 {[%clk
0:00:18]} 39. Rxh5+ {[%clk 0:00:58.1]} 39... Kg6 {[%clk 0:00:18.6]} 40. Rg5+
{[%clk 0:00:56.1]} 40... Kf7 {[%clk 0:00:17.4]} 41. Rg2 {[%clk 0:00:55.5]} 41...
Rb1 {[%clk 0:00:17.8]} 42. b4 {[%clk 0:00:50.8]} 42... Rxb4 {[%clk 0:00:16.3]}
43. Rh2 {[%clk 0:00:46.6]} 43... Rb2 {[%clk 0:00:15.6]} 44. Ke4 {[%clk
0:00:45.2]} 44... b4 {[%clk 0:00:14.4]} 45. Rh7+ {[%clk 0:00:36.2]} 45... Ke8
{[%clk 0:00:12.2]} 46. f5 {[%clk 0:00:35.2]} 46... exf5+ {[%clk 0:00:10.3]} 47.
Kxf5 {[%clk 0:00:34.8]} 47... Rxc2 {[%clk 0:00:10.8]} 48. Ke6 {[%clk 0:00:34.8]}
48... Kd8 {[%clk 0:00:10.5]} 49. Kd6 {[%clk 0:00:31.1]} 49... Kc8 {[%clk
0:00:08.7]} 50. e6 {[%clk 0:00:28.9]} 50... b3 {[%clk 0:00:08]} 51. e7 {[%clk
0:00:25.5]} 51... Re2 {[%clk 0:00:08.6]} 52. Rh8+ {[%clk 0:00:25.4]} 52... Kb7
{[%clk 0:00:08]} 53. e8=Q {[%clk 0:00:19.7]} 53... Rxe8 {[%clk 0:00:07.5]} 54.
Rxe8 {[%clk 0:00:19.6]} 54... Ka6 {[%clk 0:00:02.6]} 55. Kxc5 {[%clk 0:00:17.3]}
1-0

[Event "*** Titled Tuesday Blitz"]
[Site "Chess.com"]
[Date "2021.02.16"]
[Round "3"]
[White "mattcolins2025"]
[Black "pirulillo"]
[Result "1-0"]
[WhiteElo "2483"]
[BlackElo "2160"]
[TimeControl "180+1"]
[EndTime "10:31:43 PST"]
[Termination "mattcolins2025 won on time"]

1. d4 {[%clk 0:03:00.9]} 1... g6 {[%clk 0:02:59.5]} 2. Nf3 {[%clk 0:03:00]} 2...
Bg7 {[%clk 0:03:00.4]} 3. e4 {[%clk 0:03:00.2]} 3... d6 {[%clk 0:02:59.6]} 4.
Bd3 {[%clk 0:03:00.2]} 4... Nd7 {[%clk 0:02:58.7]} 5. c3 {[%clk 0:03:00.1]} 5...
e5 {[%clk 0:02:58.9]} 6. O-O {[%clk 0:03:00.3]} 6... Ne7 {[%clk 0:02:58.4]} 7.
Nbd2 {[%clk 0:02:57.1]} 7... O-O {[%clk 0:02:58.8]} 8. Qb3 {[%clk 0:02:54.5]}
8... h6 {[%clk 0:02:57.1]} 9. Nc4 {[%clk 0:02:52.4]} 9... Kh7 {[%clk 0:02:55.4]}
10. Rd1 {[%clk 0:02:48.7]} 10... Qe8 {[%clk 0:02:52.7]} 11. Be3 {[%clk
0:02:44.9]} 11... b6 {[%clk 0:02:48.1]} 12. a4 {[%clk 0:02:38.4]} 12... a5
{[%clk 0:02:47.1]} 13. dxe5 {[%clk 0:02:19.6]} 13... Nxe5 {[%clk 0:02:42.7]} 14.
Ncxe5 {[%clk 0:02:17.7]} 14... dxe5 {[%clk 0:02:43.6]} 15. Bc4 {[%clk
0:02:17.9]} 15... Ng8 {[%clk 0:02:34.8]} 16. Bb5 {[%clk 0:02:15.5]} 16... Qe7
{[%clk 0:02:33.1]} 17. Bc6 {[%clk 0:02:14.7]} 17... Rb8 {[%clk 0:02:30.9]} 18.
Qc2 {[%clk 0:02:05.5]} 18... Nf6 {[%clk 0:02:27.5]} 19. h3 {[%clk 0:02:04]}
19... Bd7 {[%clk 0:02:24.3]} 20. Bxd7 {[%clk 0:02:01.9]} 20... Nxd7 {[%clk
0:02:25.2]} 21. b4 {[%clk 0:02:01]} 21... Ra8 {[%clk 0:02:12.9]} 22. Rd2 {[%clk
0:01:48.1]} 22... Rfc8 {[%clk 0:01:45.3]} 23. Rad1 {[%clk 0:01:43.5]} 23... Nf8
{[%clk 0:01:45.8]} 24. b5 {[%clk 0:01:41.4]} 24... Rd8 {[%clk 0:01:44]} 25. c4
{[%clk 0:01:39]} 25... Ne6 {[%clk 0:01:42.9]} 26. c5 {[%clk 0:01:32.8]} 26...
Rxd2 {[%clk 0:01:34.5]} 27. Nxd2 {[%clk 0:01:32.5]} 27... bxc5 {[%clk
0:01:28.9]} 28. Nc4 {[%clk 0:01:32.1]} 28... Nd4 {[%clk 0:01:27.7]} 29. Qb2
{[%clk 0:01:22]} 29... Qe6 {[%clk 0:01:16.9]} 30. Rc1 {[%clk 0:01:20.2]} 30...
f5 {[%clk 0:00:57.8]} 31. exf5 {[%clk 0:01:18.8]} 31... gxf5 {[%clk 0:00:56.3]}
32. Kf1 {[%clk 0:01:10.2]} 32... e4 {[%clk 0:00:47.5]} 33. Qb1 {[%clk
0:00:56.8]} 33... Rf8 {[%clk 0:00:37.3]} 34. Bf4 {[%clk 0:00:51.4]} 34... Bf6
{[%clk 0:00:26.6]} 35. Nxa5 {[%clk 0:00:49.7]} 35... Bg5 {[%clk 0:00:25.5]} 36.
Bxg5 {[%clk 0:00:49]} 36... hxg5 {[%clk 0:00:26.4]} 37. Nb7 {[%clk 0:00:34.5]}
37... c4 {[%clk 0:00:20.1]} 38. Qb2 {[%clk 0:00:28.8]} 38... Qd5 {[%clk
0:00:17.9]} 39. Na5 {[%clk 0:00:27.3]} 39... Ne6 {[%clk 0:00:15]} 40. Nxc4
{[%clk 0:00:25.8]} 40... Nf4 {[%clk 0:00:14.2]} 41. Kg1 {[%clk 0:00:13.8]} 41...
Nd3 {[%clk 0:00:14.4]} 42. Qd2 {[%clk 0:00:12.9]} 42... Qd4 {[%clk 0:00:12.8]}
43. Ne3 {[%clk 0:00:13]} 43... f4 {[%clk 0:00:12.3]} 44. Rxc7+ {[%clk
0:00:12.6]} 44... Kh8 {[%clk 0:00:10.6]} 45. Ng4 {[%clk 0:00:12.2]} 45... e3
{[%clk 0:00:10.5]} 46. fxe3 {[%clk 0:00:12.6]} 46... fxe3 {[%clk 0:00:10.8]} 47.
Qxe3 {[%clk 0:00:13]} 47... Qa1+ {[%clk 0:00:06.7]} 48. Kh2 {[%clk 0:00:13.1]}
48... Nf4 {[%clk 0:00:07]} 49. Qe5+ {[%clk 0:00:11.7]} 49... Qxe5 {[%clk
0:00:06.1]} 50. Nxe5 {[%clk 0:00:12.6]} 50... Ra8 {[%clk 0:00:06.1]} 51. Rc4
{[%clk 0:00:11.7]} 51... Re8 {[%clk 0:00:04.5]} 52. Nc6 {[%clk 0:00:11.4]} 52...
Re2 {[%clk 0:00:04.5]} 53. a5 {[%clk 0:00:09.8]} 53... Rxg2+ {[%clk 0:00:03.9]}
54. Kh1 {[%clk 0:00:10.2]} 54... Ra2 {[%clk 0:00:04.2]} 55. b6 {[%clk
0:00:10.3]} 55... Nxh3 {[%clk 0:00:04.3]} 56. b7 {[%clk 0:00:10.2]} 1-0

[Event "*** Titled Tuesday Blitz"]
[Site "Chess.com"]
[Date "2021.02.16"]
[Round "3"]
[White "Harry_Rakkel"]
[Black "Tashik"]
[Result "1-0"]
[WhiteElo "2685"]
[BlackElo "2427"]
[TimeControl "180+1"]
[EndTime "10:31:46 PST"]
[Termination "Harry_Rakkel won by resignation"]

1. e4 {[%clk 0:03:00.9]} 1... e5 {[%clk 0:02:59.9]} 2. Nf3 {[%clk 0:02:59.7]}
2... Nc6 {[%clk 0:03:00.4]} 3. Bb5 {[%clk 0:02:59.4]} 3... a6 {[%clk 0:03:00.3]}
4. Ba4 {[%clk 0:02:58.8]} 4... Nf6 {[%clk 0:03:00.9]} 5. O-O {[%clk 0:02:58.1]}
5... b5 {[%clk 0:03:01.5]} 6. Bb3 {[%clk 0:02:57.5]} 6... Bc5 {[%clk 0:03:02.4]}
7. d3 {[%clk 0:02:52.5]} 7... h6 {[%clk 0:03:00.8]} 8. a4 {[%clk 0:02:47.3]}
8... Rb8 {[%clk 0:02:59.2]} 9. Nc3 {[%clk 0:02:43.4]} 9... O-O {[%clk
0:02:53.7]} 10. axb5 {[%clk 0:02:38.3]} 10... axb5 {[%clk 0:02:53.1]} 11. h3
{[%clk 0:02:29.4]} 11... d6 {[%clk 0:02:52.6]} 12. Be3 {[%clk 0:02:15.7]} 12...
Nd4 {[%clk 0:02:46.2]} 13. Bxd4 {[%clk 0:02:11.1]} 13... Bxd4 {[%clk 0:02:33.4]}
14. Nxd4 {[%clk 0:02:09]} 14... exd4 {[%clk 0:02:34.3]} 15. Ne2 {[%clk
0:02:05.7]} 15... c5 {[%clk 0:02:33.2]} 16. Qd2 {[%clk 0:01:36.2]} 16... Qb6
{[%clk 0:02:10]} 17. Qa5 {[%clk 0:01:11.6]} 17... Qc6 {[%clk 0:01:44.9]} 18. Ng3
{[%clk 0:01:06.6]} 18... c4 {[%clk 0:01:36.9]} 19. dxc4 {[%clk 0:01:01.6]} 19...
bxc4 {[%clk 0:01:36.3]} 20. Ba4 {[%clk 0:01:00.5]} 20... Qc5 {[%clk 0:01:26.6]}
21. Qxc5 {[%clk 0:00:56.9]} 21... dxc5 {[%clk 0:01:27.5]} 22. b3 {[%clk
0:00:56.8]} 22... c3 {[%clk 0:01:12.7]} 23. Bc6 {[%clk 0:00:36]} 23... Rb6
{[%clk 0:01:05]} 24. Bd5 {[%clk 0:00:23]} 24... Nxd5 {[%clk 0:00:40.7]} 25. exd5
{[%clk 0:00:23.9]} 25... Rd6 {[%clk 0:00:41.2]} 26. Ra5 {[%clk 0:00:23.3]} 26...
Rxd5 {[%clk 0:00:41.1]} 27. b4 {[%clk 0:00:23.2]} 27... Bf5 {[%clk 0:00:21.3]}
28. Nxf5 {[%clk 0:00:21.4]} 28... Rxf5 {[%clk 0:00:22.2]} 29. bxc5 {[%clk
0:00:20]} 29... Rc8 {[%clk 0:00:21.7]} 30. Rd1 {[%clk 0:00:19.6]} 30... Rfxc5
{[%clk 0:00:17.9]} 31. Rxc5 {[%clk 0:00:18.5]} 31... Rxc5 {[%clk 0:00:18.8]} 32.
Rxd4 {[%clk 0:00:18.5]} 32... Re5 {[%clk 0:00:14]} 33. Kf1 {[%clk 0:00:18.3]}
33... Rc5 {[%clk 0:00:12.8]} 34. Ke2 {[%clk 0:00:17.3]} 34... g5 {[%clk
0:00:12.4]} 35. Kd3 {[%clk 0:00:16.9]} 35... Kg7 {[%clk 0:00:12.6]} 36. Rc4
{[%clk 0:00:16.6]} 36... Rf5 {[%clk 0:00:13.1]} 37. f3 {[%clk 0:00:16.1]} 37...
Re5 {[%clk 0:00:13.1]} 38. Re4 {[%clk 0:00:15.6]} 38... Ra5 {[%clk 0:00:12.9]}
39. Kxc3 {[%clk 0:00:15.3]} 39... Ra1 {[%clk 0:00:13.4]} 40. Re2 {[%clk
0:00:11.7]} 40... f5 {[%clk 0:00:12.5]} 41. Kd4 {[%clk 0:00:11.3]} 41... Kf6
{[%clk 0:00:12.9]} 42. c4 {[%clk 0:00:10.7]} 42... Rd1+ {[%clk 0:00:13.3]} 43.
Kc5 {[%clk 0:00:10.6]} 43... h5 {[%clk 0:00:13.6]} 44. Kb6 {[%clk 0:00:10]}
44... Rb1+ {[%clk 0:00:13.7]} 45. Kc6 {[%clk 0:00:09.5]} 45... g4 {[%clk
0:00:13.2]} 46. hxg4 {[%clk 0:00:09.6]} 46... hxg4 {[%clk 0:00:14.1]} 47. fxg4
{[%clk 0:00:09.8]} 47... fxg4 {[%clk 0:00:14.2]} 48. c5 {[%clk 0:00:09.9]} 48...
Kf5 {[%clk 0:00:14.2]} 49. Kd7 {[%clk 0:00:07]} 49... Rd1+ {[%clk 0:00:13.2]}
50. Kc7 {[%clk 0:00:06.5]} 50... Kf4 {[%clk 0:00:13.5]} 51. Rb2 {[%clk
0:00:05.7]} 51... Rc1 {[%clk 0:00:12.7]} 52. c6 {[%clk 0:00:05.7]} 52... Kg3
{[%clk 0:00:13.1]} 53. Kb7 {[%clk 0:00:05.8]} 53... Kh2 {[%clk 0:00:07.5]} 54.
c7 {[%clk 0:00:05.6]} 1-0

[Event "*** Titled Tuesday Blitz"]
[Site "Chess.com"]
[Date "2021.02.16"]
[Round "3"]
[White "mishanick"]
[Black "Mazetovic"]
[Result "0-1"]
[WhiteElo "2997"]
[BlackElo "2698"]
[TimeControl "180+1"]
[EndTime "10:31:47 PST"]
[Termination "Mazetovic won on time"]

1. c4 {[%clk 0:02:57.9]} 1... Nf6 {[%clk 0:02:59.5]} 2. Nc3 {[%clk 0:02:57.1]}
2... g6 {[%clk 0:02:59.9]} 3. e4 {[%clk 0:02:57.3]} 3... d6 {[%clk 0:02:58.7]}
4. d4 {[%clk 0:02:57.5]} 4... Bg7 {[%clk 0:02:59.1]} 5. Be2 {[%clk 0:02:57.9]}
5... O-O {[%clk 0:02:58.9]} 6. Be3 {[%clk 0:02:58]} 6... e5 {[%clk 0:02:41.1]}
7. d5 {[%clk 0:02:58.2]} 7... Na6 {[%clk 0:02:40.6]} 8. g4 {[%clk 0:02:58.4]}
8... Nc5 {[%clk 0:02:38.8]} 9. f3 {[%clk 0:02:57.9]} 9... a5 {[%clk 0:02:32.3]}
10. h4 {[%clk 0:02:57.2]} 10... h5 {[%clk 0:02:24.1]} 11. g5 {[%clk 0:02:56.6]}
11... Nfd7 {[%clk 0:02:06.6]} 12. Qd2 {[%clk 0:02:56.2]} 12... Nb6 {[%clk
0:02:05.3]} 13. Nh3 {[%clk 0:02:51.6]} 13... Bd7 {[%clk 0:02:04.6]} 14. b3
{[%clk 0:02:49]} 14... Qc8 {[%clk 0:01:57.6]} 15. Nf2 {[%clk 0:02:48.6]} 15...
Rd8 {[%clk 0:01:51.2]} 16. Rb1 {[%clk 0:02:23]} 16... Be8 {[%clk 0:01:50.9]} 17.
Nd3 {[%clk 0:02:14.3]} 17... Nxd3+ {[%clk 0:01:50]} 18. Bxd3 {[%clk 0:02:15.2]}
18... Nd7 {[%clk 0:01:48.6]} 19. a3 {[%clk 0:02:12.2]} 19... Nc5 {[%clk
0:01:47.6]} 20. Bc2 {[%clk 0:02:12.8]} 20... c6 {[%clk 0:01:34.3]} 21. Kf2
{[%clk 0:02:00.6]} 21... Nd7 {[%clk 0:01:17.3]} 22. Rhd1 {[%clk 0:01:47.8]}
22... c5 {[%clk 0:01:17]} 23. Ke2 {[%clk 0:01:45.5]} 23... Nb8 {[%clk
0:01:13.9]} 24. Bd3 {[%clk 0:01:41.8]} 24... Na6 {[%clk 0:01:09.1]} 25. Nb5
{[%clk 0:01:41.8]} 25... Nc7 {[%clk 0:01:08.1]} 26. Nc3 {[%clk 0:01:38.8]} 26...
b6 {[%clk 0:01:06]} 27. Rb2 {[%clk 0:01:36.8]} 27... Qh3 {[%clk 0:01:05.2]} 28.
Bf2 {[%clk 0:01:35.5]} 28... Rdb8 {[%clk 0:01:02.1]} 29. b4 {[%clk 0:01:28.6]}
29... axb4 {[%clk 0:00:58.9]} 30. axb4 {[%clk 0:01:29.5]} 30... Na6 {[%clk
0:00:56.2]} 31. bxc5 {[%clk 0:01:27.4]} 31... bxc5 {[%clk 0:00:54.8]} 32. Rxb8
{[%clk 0:00:51.3]} 32... Rxb8 {[%clk 0:00:54]} 33. Nb5 {[%clk 0:00:51.9]} 33...
Bxb5 {[%clk 0:00:50.7]} 34. cxb5 {[%clk 0:00:52.8]} 34... Nb4 {[%clk 0:00:50.9]}
35. Bc4 {[%clk 0:00:47.8]} 35... Ra8 {[%clk 0:00:44]} 36. Qc3 {[%clk 0:00:46.1]}
36... f6 {[%clk 0:00:36.1]} 37. Ra1 {[%clk 0:00:44.2]} 37... Rb8 {[%clk
0:00:33.8]} 38. Ra7 {[%clk 0:00:35.1]} 38... fxg5 {[%clk 0:00:33.3]} 39. hxg5
{[%clk 0:00:35.1]} 39... Qg2 {[%clk 0:00:32.2]} 40. Rd7 {[%clk 0:00:32.6]} 40...
h4 {[%clk 0:00:29.9]} 41. Qe1 {[%clk 0:00:15.1]} 41... Rf8 {[%clk 0:00:28.1]}
42. Qc3 {[%clk 0:00:04.9]} 42... h3 {[%clk 0:00:28.1]} 43. Ra7 {[%clk
0:00:03.3]} 43... h2 {[%clk 0:00:27.9]} 44. Ra1 {[%clk 0:00:04]} 44... h1=Q
{[%clk 0:00:28]} 45. Rxh1 {[%clk 0:00:04.6]} 45... Qxh1 {[%clk 0:00:28.4]} 46.
Qa3 {[%clk 0:00:05.2]} 46... Qb1 {[%clk 0:00:26.6]} 47. Bb3 {[%clk 0:00:04.1]}
47... Qd3+ {[%clk 0:00:24.3]} 48. Ke1 {[%clk 0:00:04.7]} 48... Qxf3 {[%clk
0:00:23.7]} 49. Bxc5 {[%clk 0:00:02.6]} 49... Qxe4+ {[%clk 0:00:21.9]} 50. Kd2
{[%clk 0:00:02.3]} 50... Qd3+ {[%clk 0:00:20.8]} 51. Kc1 {[%clk 0:00:02.3]}
51... Rf1+ {[%clk 0:00:21.2]} 52. Kb2 {[%clk 0:00:02.4]} 52... Qb1+ {[%clk
0:00:21]} 53. Kc3 {[%clk 0:00:02.8]} 53... Rf3+ {[%clk 0:00:20.7]} 54. Kxb4
{[%clk 0:00:02.8]} 54... dxc5+ {[%clk 0:00:19.4]} 55. Ka4 {[%clk 0:00:03.1]}
55... c4 {[%clk 0:00:15.1]} 56. d6 {[%clk 0:00:01.4]} 56... Rxb3 {[%clk
0:00:14.1]} 0-1